fUST/lending_fUST_20260511
["ID","MTS","AMOUNT","RATE_DAILY","PERIOD"]
[421997470,1778435445000,-500.0,0.0001178,2]
[421997477,1778435445000,-500.0,0.0001178,2]
[421997474,1778435445000,-205.93911015,0.0001178,2]
[421997475,1778435445000,-500.0,0.0001178,2]
[421997473,1778435445000,-500.0,0.0001178,2]
[421997476,1778435445000,-500.0,0.0001178,2]
[421997479,1778435445000,-500.0,0.0001178,2]
[421997478,1778435445000,-500.0,0.0001178,2]
[421997480,1778435445000,-500.0,0.0001178,2]
[421997465,1778435445000,-500.0,0.0001178,2]
[421997515,1778435445000,-874.67,0.0001178,2]
[421997520,1778435445000,-374.076359,0.0001178,2]
[421997512,1778435445000,-500.0,0.0001178,2]
[421997558,1778435445000,-500.0,0.0001178,2]
[421997553,1778435445000,-500.0,0.0001178,2]
[421997554,1778435445000,-793.85,0.0001178,2]
[421997555,1778435445000,-3417.57,0.0001178,2]
[421997557,1778435445000,-3084.34,0.0001178,2]
[421997556,1778435445000,-2934.49,0.0001178,2]
[421997561,1778435445000,-3132.52,0.0001178,2]
[421997559,1778435445000,-500.0,0.0001178,2]
[421997560,1778435445000,-6362.43,0.0001178,2]
[421997562,1778435445000,-990.14,0.0001178,2]
[421997565,1778435445000,-3048.13,0.0001178,2]
[421997563,1778435445000,-575.91,0.0001178,2]
[421997567,1778435445000,-500.0,0.0001178,2]
[421997564,1778435445000,-500.0,0.0001178,2]
[421997568,1778435445000,-1176.18,0.0001178,2]
[421997566,1778435445000,-8387.64,0.0001178,2]
[421997569,1778435445000,-2386.38,0.0001178,2]
[421997570,1778435445000,-6164.85,0.0001178,2]
[421997571,1778435445000,-6678.17,0.0001178,2]
[421997572,1778435445000,-500.0,0.0001178,2]
[421997574,1778435445000,-500.0,0.0001178,2]
[421997573,1778435445000,-500.0,0.0001178,2]
[421997575,1778435445000,-1917.58,0.0001178,2]
[421997516,1778435445000,-3497.8,0.0001178,2]
[421997579,1778435445000,-500.0,0.0001178,2]
[421997576,1778435445000,-500.0,0.0001178,2]
[421997578,1778435445000,-500.0,0.0001178,2]
[421997581,1778435445000,-500.0,0.0001178,2]
[421997580,1778435445000,-1639.36,0.0001178,2]
[421997552,1778435445000,-2492.48,0.0001178,2]
[421997551,1778435445000,-500.0,0.0001178,2]
[421997577,1778435445000,-500.0,0.0001178,2]
[421997548,1778435445000,-250.49144408,0.0001178,2]
[421997550,1778435445000,-500.0,0.0001178,2]
[421997519,1778435445000,-374.076359,0.0001178,2]
[421997518,1778435445000,-500.0,0.0001178,2]
[421997521,1778435445000,-1233.72,0.0001178,2]
[421997524,1778435445000,-3603.62,0.0001178,2]
[421997526,1778435445000,-500.0,0.0001178,2]
[421997525,1778435445000,-629.82,0.0001178,2]
[421997522,1778435445000,-374.076359,0.0001178,2]
[421997528,1778435445000,-1031.29,0.0001178,2]
[421997527,1778435445000,-509.92,0.0001178,2]
[421997529,1778435445000,-500.0,0.0001178,2]
[421997530,1778435445000,-500.0,0.0001178,2]
[421997531,1778435445000,-703.26,0.0001178,2]
[421997533,1778435445000,-2279.53,0.0001178,2]
[421997532,1778435445000,-151.0,0.0001178,2]
[421997523,1778435445000,-374.076359,0.0001178,2]
[421997536,1778435445000,-500.0,0.0001178,2]
[421997534,1778435445000,-500.0,0.0001178,2]
[421997547,1778435445000,-548.2,0.0001178,2]
[421997546,1778435445000,-1482.44,0.0001178,2]
[421997544,1778435445000,-1444.48,0.0001178,2]
[421997540,1778435445000,-8729.24,0.0001178,2]
[421997542,1778435445000,-3197.08,0.0001178,2]
[421997545,1778435445000,-529.51,0.0001178,2]
[421997539,1778435445000,-655.76,0.0001178,2]
[421997535,1778435445000,-500.0,0.0001178,2]
[421997541,1778435445000,-865.84,0.0001178,2]
[421997537,1778435445000,-9683.17,0.0001178,2]
[421997549,1778435445000,-500.0,0.0001178,2]
[421997543,1778435445000,-3580.09,0.0001178,2]
[421997538,1778435445000,-3973.84,0.0001178,2]
[421997610,1778435446000,-8041.35,0.0001178,2]
[421997622,1778435446000,-500.0,0.0001178,2]
[421997626,1778435446000,-3431.27,0.0001178,2]
[421997628,1778435446000,-1886.07,0.0001178,2]
[421997634,1778435446000,-1415.70129358,0.0001182,2]
[421997636,1778435446000,-478.75725327,0.0001183,2]
[421997638,1778435446000,-183.94,0.00011843,2]
[421997640,1778435446000,-540.58072226,0.00011915,2]
[421997630,1778435446000,-500.0,0.0001178,2]
[421997632,1778435446000,-18915.917202,0.000118,2]
[421997624,1778435446000,-2697.24,0.0001178,2]
[421997652,1778435446000,-166.0,0.00012,2]
[421997644,1778435446000,-500.0,0.00011943,2]
[421997646,1778435446000,-160.0,0.00011959,5]
[421997648,1778435446000,-160.0,0.00011959,3]
[421997653,1778435446000,-342981.43032817,0.00012,2]
[421997650,1778435446000,-160.0,0.00011959,5]
[421997656,1778435446000,-473.68294046,0.00012,2]
[421997654,1778435446000,-7000.0,0.00012,90]
[421997659,1778435446000,-9491.40202489,0.00012,2]
[421997658,1778435446000,-9491.40202491,0.00012,2]
[421997667,1778435446000,-217.35,0.00012,2]
[421997612,1778435446000,-500.0,0.0001178,2]
[421997642,1778435446000,-155.0,0.00011941,2]
[421997609,1778435446000,-6338.19,0.0001178,2]
[421997592,1778435446000,-174.85626526,0.0001178,2]
[421997607,1778435446000,-500.0,0.0001178,2]
[421997670,1778435446000,-151.0,0.00012,2]
[421997585,1778435446000,-1775.62,0.0001178,2]
[421997583,1778435446000,-986.47,0.0001178,2]
[421997582,1778435446000,-500.0,0.0001178,2]
[421997584,1778435446000,-464.38465836,0.0001178,2]
[421997586,1778435446000,-1543.3,0.0001178,2]
[421997588,1778435446000,-500.0,0.0001178,2]
[421997587,1778435446000,-500.0,0.0001178,2]
[421997591,1778435446000,-2554.89,0.0001178,2]
[421997589,1778435446000,-2084.74,0.0001178,2]
[421997590,1778435446000,-44284.79,0.0001178,2]
[421997608,1778435446000,-500.0,0.0001178,2]
[421997594,1778435446000,-3796.31,0.0001178,2]
[421997596,1778435446000,-365.91488315,0.0001178,2]
[421997597,1778435446000,-632.2,0.0001178,2]
[421997598,1778435446000,-1091.69,0.0001178,2]
[421997600,1778435446000,-552.88,0.0001178,2]
[421997599,1778435446000,-1079.06,0.0001178,2]
[421997602,1778435446000,-500.0,0.0001178,2]
[421997601,1778435446000,-529.68,0.0001178,2]
[421997603,1778435446000,-2875.08,0.0001178,2]
[421997604,1778435446000,-4216.09,0.0001178,2]
[421997605,1778435446000,-7983.97,0.0001178,2]
[421997606,1778435446000,-3406.4,0.0001178,2]
[421997595,1778435446000,-9034.37,0.0001178,2]
[421997663,1778435446000,-170.43606865,0.00012,2]
[421997708,1778435446000,-500.0,0.00012054,2]
[421997662,1778435446000,-797.17831302,0.00012,2]
[421997732,1778435446000,-500.0,0.00012054,2]
[421997726,1778435446000,-1996.64,0.00012054,2]
[421997736,1778435446000,-539.56,0.00012054,2]
[421997728,1778435446000,-500.0,0.00012054,2]
[421997724,1778435446000,-500.0,0.00012054,2]
[421997734,1778435446000,-500.0,0.00012054,2]
[421997738,1778435446000,-854.25,0.00012054,2]
[421997752,1778435446000,-500.0,0.00012054,2]
[421997754,1778435446000,-500.0,0.00012054,2]
[421997761,1778435446000,-500.0,0.00012054,2]
[421997742,1778435446000,-500.0,0.00012054,2]
[421997750,1778435446000,-323.68075908,0.00012054,2]
[421997740,1778435446000,-500.0,0.00012054,2]
[421997746,1778435446000,-500.0,0.00012054,2]
[421997760,1778435446000,-500.0,0.00012054,2]
[421997748,1778435446000,-500.0,0.00012054,2]
[421997756,1778435446000,-500.0,0.00012054,2]
[421997744,1778435446000,-500.0,0.00012054,2]
[421997763,1778435446000,-867.11,0.00012054,2]
[421997765,1778435446000,-518.92,0.00012054,2]
[421997767,1778435446000,-690.65,0.00012054,2]
[421997766,1778435446000,-500.0,0.00012054,2]
[421997665,1778435446000,-336.95859678,0.00012,2]
[421997731,1778435446000,-500.0,0.00012054,2]
[421997722,1778435446000,-576.78,0.00012054,2]
[421997758,1778435446000,-3469.08,0.00012054,2]
[421997718,1778435446000,-500.0,0.00012054,2]
[421997720,1778435446000,-1685.05,0.00012054,2]
[421997681,1778435446000,-9491.40202491,0.00012054,2]
[421997671,1778435446000,-31160.03899526,0.00012005,2]
[421997673,1778435446000,-179.24543093,0.00012042,2]
[421997675,1778435446000,-155.0,0.00012053,2]
[421997679,1778435446000,-155.0,0.00012053,2]
[421997677,1778435446000,-155.0,0.00012053,2]
[421997683,1778435446000,-2028.9053,0.00012054,2]
[421997687,1778435446000,-1143.5331,0.00012054,2]
[421997691,1778435446000,-500.0,0.00012054,2]
[421997689,1778435446000,-1153.12,0.00012054,2]
[421997693,1778435446000,-1653.59,0.00012054,2]
[421997685,1778435446000,-1891.7913,0.00012054,2]
[421997769,1778435446000,-537.36,0.00012054,2]
[421997700,1778435446000,-623.21,0.00012054,2]
[421997696,1778435446000,-500.0,0.00012054,2]
[421997702,1778435446000,-500.0,0.00012054,2]
[421997704,1778435446000,-1364.87,0.00012054,2]
[421997699,1778435446000,-500.0,0.00012054,2]
[421997706,1778435446000,-500.0,0.00012054,2]
[421997710,1778435446000,-500.0,0.00012054,2]
[421997712,1778435446000,-500.0,0.00012054,2]
[421997714,1778435446000,-500.0,0.00012054,2]
[421997695,1778435446000,-500.0,0.00012054,2]
[421997716,1778435446000,-500.0,0.00012054,2]
[421997808,1778435447000,-2279.53,0.00012054,2]
[421997815,1778435447000,-865.84,0.00012054,2]
[421997804,1778435447000,-500.0,0.00012054,2]
[421997814,1778435447000,-8729.24,0.00012054,2]
[421997809,1778435447000,-500.0,0.00012054,2]
[421997810,1778435447000,-500.0,0.00012054,2]
[421997806,1778435447000,-703.26,0.00012054,2]
[421997813,1778435447000,-655.76,0.00012054,2]
[421997805,1778435447000,-500.0,0.00012054,2]
[421997811,1778435447000,-9683.17,0.00012054,2]
[421997812,1778435447000,-3973.84,0.00012054,2]
[421997816,1778435447000,-3197.08,0.00012054,2]
[421997807,1778435447000,-500.0,0.00012054,2]
[421997818,1778435447000,-1444.48,0.00012054,2]
[421997839,1778435447000,-8387.64,0.00012054,2]
[421997824,1778435447000,-500.0,0.00012054,2]
[421997819,1778435447000,-529.51,0.00012054,2]
[421997823,1778435447000,-500.0,0.00012054,2]
[421997820,1778435447000,-1482.44,0.00012054,2]
[421997822,1778435447000,-500.0,0.00012054,2]
[421997821,1778435447000,-548.2,0.00012054,2]
[421997817,1778435447000,-3580.09,0.00012054,2]
[421997827,1778435447000,-793.85,0.00012054,2]
[421997828,1778435447000,-3417.57,0.00012054,2]
[421997826,1778435447000,-500.0,0.00012054,2]
[421997830,1778435447000,-3084.34,0.00012054,2]
[421997829,1778435447000,-2934.49,0.00012054,2]
[421997795,1778435447000,-3497.8,0.00012054,2]
[421997825,1778435447000,-2492.48,0.00012054,2]
[421997798,1778435447000,-1233.72,0.00012054,2]
[421997771,1778435447000,-1758.48,0.00012054,2]
[421997801,1778435447000,-500.0,0.00012054,2]
[421997774,1778435447000,-1837.32,0.00012054,2]
[421997778,1778435447000,-793.59,0.00012054,2]
[421997775,1778435447000,-500.0,0.00012054,2]
[421997776,1778435447000,-500.0,0.00012054,2]
[421997840,1778435447000,-500.0,0.00012054,2]
[421997772,1778435447000,-735.83,0.00012054,2]
[421997773,1778435447000,-948.69,0.00012054,2]
[421997777,1778435447000,-3553.8,0.00012054,2]
[421997779,1778435447000,-500.0,0.00012054,2]
[421997781,1778435447000,-1775.32,0.00012054,2]
[421997780,1778435447000,-500.0,0.00012054,2]
[421997784,1778435447000,-500.0,0.00012054,2]
[421997788,1778435447000,-500.1,0.00012054,2]
[421997800,1778435447000,-629.82,0.00012054,2]
[421997785,1778435447000,-500.0,0.00012054,2]
[421997789,1778435447000,-2149.13,0.00012054,2]
[421997783,1778435447000,-1476.29,0.00012054,2]
[421997787,1778435447000,-999.62,0.00012054,2]
[421997782,1778435447000,-500.0,0.00012054,2]
[421997792,1778435447000,-1334.1,0.00012054,2]
[421997803,1778435447000,-1031.29,0.00012054,2]
[421997802,1778435447000,-509.92,0.00012054,2]
[421997793,1778435447000,-754.28,0.00012054,2]
[421997791,1778435447000,-500.0,0.00012054,2]
[421997794,1778435447000,-874.67,0.00012054,2]
[421997797,1778435447000,-500.0,0.00012054,2]
[421997796,1778435447000,-500.0,0.00012054,2]
[421997799,1778435447000,-3603.62,0.00012054,2]
[421997790,1778435447000,-571.98,0.00012054,2]
[421997831,1778435447000,-500.0,0.00012054,2]
[421997786,1778435447000,-500.0,0.00012054,2]
[421997832,1778435447000,-500.0,0.00012054,2]
[421997868,1778435447000,-1079.06,0.00012054,2]
[421997872,1778435447000,-2875.08,0.00012054,2]
[421997869,1778435447000,-552.88,0.00012054,2]
[421997873,1778435447000,-4216.09,0.00012054,2]
[421997871,1778435447000,-500.0,0.00012054,2]
[421997874,1778435447000,-7983.97,0.00012054,2]
[421997875,1778435447000,-3406.4,0.00012054,2]
[421997879,1778435447000,-8041.35,0.00012054,2]
[421997878,1778435447000,-6338.19,0.00012054,2]
[421997877,1778435447000,-500.0,0.00012054,2]
[421997880,1778435447000,-500.0,0.00012054,2]
[421997876,1778435447000,-500.0,0.00012054,2]
[421997881,1778435447000,-500.0,0.00012054,2]
[421997870,1778435447000,-529.68,0.00012054,2]
[421997888,1778435447000,-160.0,0.00012081,2]
[421997896,1778435447000,-1958.289474,0.00012081,2]
[421997891,1778435447000,-367.109327,0.00012081,2]
[421997893,1778435447000,-2974.925501,0.00012081,2]
[421997894,1778435447000,-5789.851002,0.00012081,2]
[421997889,1778435447000,-8001.517278,0.00012081,2]
[421997890,1778435447000,-15843.034557,0.00012081,2]
[421997892,1778435447000,-160.0,0.00012081,2]
[421997885,1778435447000,-500.0,0.00012054,2]
[421997884,1778435447000,-1886.07,0.00012054,2]
[421997886,1778435447000,-161.2696,0.00012054,2]
[421997887,1778435447000,-1001.9657763,0.0001207,2]
[421997895,1778435447000,-160.0,0.00012081,2]
[421997833,1778435447000,-6362.43,0.00012054,2]
[421997882,1778435447000,-2697.24,0.00012054,2]
[421997863,1778435447000,-2554.89,0.00012054,2]
[421997883,1778435447000,-3431.27,0.00012054,2]
[421997864,1778435447000,-3796.31,0.00012054,2]
[421997865,1778435447000,-9034.37,0.00012054,2]
[421997834,1778435447000,-3132.52,0.00012054,2]
[421997835,1778435447000,-990.14,0.00012054,2]
[421997836,1778435447000,-575.91,0.00012054,2]
[421997837,1778435447000,-500.0,0.00012054,2]
[421997841,1778435447000,-1176.18,0.00012054,2]
[421997844,1778435447000,-6678.17,0.00012054,2]
[421997842,1778435447000,-2386.38,0.00012054,2]
[421997853,1778435447000,-1639.36,0.00012054,2]
[421997845,1778435447000,-500.0,0.00012054,2]
[421997852,1778435447000,-500.0,0.00012054,2]
[421997843,1778435447000,-6164.85,0.00012054,2]
[421997851,1778435447000,-500.0,0.00012054,2]
[421997847,1778435447000,-500.0,0.00012054,2]
[421997838,1778435447000,-3048.13,0.00012054,2]
[421997848,1778435447000,-1917.58,0.00012054,2]
[421997850,1778435447000,-500.0,0.00012054,2]
[421997861,1778435447000,-2084.74,0.00012054,2]
[421997866,1778435447000,-632.2,0.00012054,2]
[421997867,1778435447000,-1091.69,0.00012054,2]
[421997860,1778435447000,-500.0,0.00012054,2]
[421997862,1778435447000,-44284.79,0.00012054,2]
[421997859,1778435447000,-500.0,0.00012054,2]
[421997857,1778435447000,-1775.62,0.00012054,2]
[421997855,1778435447000,-500.0,0.00012054,2]
[421997856,1778435447000,-986.47,0.00012054,2]
[421997849,1778435447000,-500.0,0.00012054,2]
[421997858,1778435447000,-1543.3,0.00012054,2]
[421997854,1778435447000,-500.0,0.00012054,2]
[421997846,1778435447000,-500.0,0.00012054,2]
[421997925,1778435448000,-741.0,0.00012267,2]
[421997932,1778435448000,-1891.7913,0.00012328,2]
[421997930,1778435448000,-160.0,0.00012323,7]
[421997933,1778435448000,-1143.5331,0.00012328,2]
[421997928,1778435448000,-336.95859678,0.00012283,7]
[421997934,1778435448000,-1153.12,0.00012328,2]
[421997927,1778435448000,-9491.40202491,0.0001227,7]
[421997922,1778435448000,-1196.0,0.00012232,2]
[421997923,1778435448000,-224.0,0.00012255,2]
[421997931,1778435448000,-2028.9053,0.00012328,2]
[421997929,1778435448000,-9491.40202491,0.00012323,7]
[421997942,1778435448000,-1364.87,0.00012328,2]
[421997936,1778435448000,-1653.59,0.00012328,2]
[421997938,1778435448000,-500.0,0.00012328,2]
[421997940,1778435448000,-623.21,0.00012328,2]
[421997939,1778435448000,-500.0,0.00012328,2]
[421997937,1778435448000,-500.0,0.00012328,2]
[421997941,1778435448000,-500.0,0.00012328,2]
[421997943,1778435448000,-500.0,0.00012328,2]
[421997944,1778435448000,-500.0,0.00012328,2]
[421997926,1778435448000,-185.0,0.00012267,2]
[421997946,1778435448000,-500.0,0.00012328,2]
[421997935,1778435448000,-500.0,0.00012328,2]
[421997924,1778435448000,-1463.65953258,0.0001226,2]
[421997900,1778435448000,-9491.40202491,0.00012108,2]
[421997915,1778435448000,-2000.0,0.00012232,2]
[421997950,1778435448000,-1685.05,0.00012328,2]
[421997897,1778435448000,-3756.578949,0.00012081,2]
[421997904,1778435448000,-9491.40202491,0.00012162,2]
[421997902,1778435448000,-823.0,0.00012139,2]
[421997898,1778435448000,-164.499735,0.00012081,2]
[421997906,1778435448000,-151.0,0.00012206,2]
[421997899,1778435448000,-242.53,0.000121,2]
[421997903,1778435448000,-336.95859678,0.00012142,2]
[421997907,1778435448000,-9491.40202491,0.00012216,2]
[421997901,1778435448000,-797.17831302,0.00012113,2]
[421997905,1778435448000,-161.85537793,0.000122,3]
[421997909,1778435448000,-2000.0,0.00012232,2]
[421997910,1778435448000,-2000.0,0.00012232,2]
[421997908,1778435448000,-797.17831302,0.00012226,2]
[421997917,1778435448000,-2000.0,0.00012232,2]
[421997911,1778435448000,-2000.0,0.00012232,2]
[421997919,1778435448000,-2000.0,0.00012232,2]
[421997918,1778435448000,-2000.0,0.00012232,2]
[421997912,1778435448000,-2000.0,0.00012232,2]
[421997920,1778435448000,-2000.0,0.00012232,2]
[421997913,1778435448000,-2000.0,0.00012232,2]
[421997921,1778435448000,-2000.0,0.00012232,2]
[421997914,1778435448000,-2000.0,0.00012232,2]
[421997916,1778435448000,-2000.0,0.00012232,2]
[421997945,1778435448000,-500.0,0.00012328,2]
[421997958,1778435448000,-539.56,0.00012328,2]
[421997949,1778435448000,-500.0,0.00012328,2]
[421997977,1778435448000,-735.83,0.00012328,2]
[421997980,1778435448000,-500.0,0.00012328,2]
[421997979,1778435448000,-1837.32,0.00012328,2]
[421997981,1778435448000,-500.0,0.00012328,2]
[421997984,1778435448000,-500.0,0.00012328,2]
[421997986,1778435448000,-1775.32,0.00012328,2]
[421997987,1778435448000,-500.0,0.00012328,2]
[421997982,1778435448000,-3553.8,0.00012328,2]
[421997983,1778435448000,-793.59,0.00012328,2]
[421997985,1778435448000,-500.0,0.00012328,2]
[421997976,1778435448000,-1758.48,0.00012328,2]
[421997988,1778435448000,-1476.29,0.00012328,2]
[421997989,1778435448000,-500.0,0.00012328,2]
[421997992,1778435448000,-999.62,0.00012328,2]
[421997991,1778435448000,-500.0,0.00012328,2]
[421997995,1778435448000,-571.98,0.00012328,2]
[421997994,1778435448000,-2149.13,0.00012328,2]
[421997993,1778435448000,-500.1,0.00012328,2]
[421997997,1778435448000,-1334.1,0.00012328,2]
[421997996,1778435448000,-500.0,0.00012328,2]
[421997998,1778435448000,-754.28,0.00012328,2]
[421997947,1778435448000,-500.0,0.00012328,2]
[421997990,1778435448000,-500.0,0.00012328,2]
[421997975,1778435448000,-537.36,0.00012328,2]
[421997999,1778435448000,-874.67,0.00012328,2]
[421997972,1778435448000,-518.92,0.00012328,2]
[421997978,1778435448000,-948.69,0.00012328,2]
[421997951,1778435448000,-576.78,0.00012328,2]
[421997948,1778435448000,-500.0,0.00012328,2]
[421997959,1778435448000,-854.25,0.00012328,2]
[421997952,1778435448000,-500.0,0.00012328,2]
[421997953,1778435448000,-1996.64,0.00012328,2]
[421997954,1778435448000,-500.0,0.00012328,2]
[421997955,1778435448000,-500.0,0.00012328,2]
[421997957,1778435448000,-500.0,0.00012328,2]
[421997956,1778435448000,-500.0,0.00012328,2]
[421997963,1778435448000,-500.0,0.00012328,2]
[421997960,1778435448000,-500.0,0.00012328,2]
[421997961,1778435448000,-500.0,0.00012328,2]
[421997974,1778435448000,-690.65,0.00012328,2]
[421997962,1778435448000,-500.0,0.00012328,2]
[421997973,1778435448000,-500.0,0.00012328,2]
[421997970,1778435448000,-500.0,0.00012328,2]
[421997966,1778435448000,-500.0,0.00012328,2]
[421997971,1778435448000,-867.11,0.00012328,2]
[421997967,1778435448000,-500.0,0.00012328,2]
[421997965,1778435448000,-500.0,0.00012328,2]
[421997968,1778435448000,-3469.08,0.00012328,2]
[421997964,1778435448000,-500.0,0.00012328,2]
[421997969,1778435448000,-500.0,0.00012328,2]
[421998016,1778435449000,-9683.17,0.00012328,2]
[421998015,1778435449000,-178.95961168,0.00012328,2]
[421998013,1778435449000,-2279.53,0.00012328,2]
[421998010,1778435449000,-500.0,0.00012328,2]
[421998011,1778435449000,-703.26,0.00012328,2]
[421998012,1778435449000,-500.0,0.00012328,2]
[421998014,1778435449000,-500.0,0.00012328,2]
[421998008,1778435449000,-1031.29,0.00012328,2]
[421998006,1778435449000,-500.0,0.00012328,2]
[421998004,1778435449000,-3603.62,0.00012328,2]
[421998005,1778435449000,-629.82,0.00012328,2]
[421998002,1778435449000,-500.0,0.00012328,2]
[421998007,1778435449000,-509.92,0.00012328,2]
[421998003,1778435449000,-1233.72,0.00012328,2]
[421998000,1778435449000,-3497.8,0.00012328,2]
[421998001,1778435449000,-500.0,0.00012328,2]
[421998018,1778435449000,-655.76,0.00012328,2]
[421998009,1778435449000,-500.0,0.00012328,2]
[421998019,1778435449000,-8729.24,0.00012328,2]
[421998028,1778435449000,-500.0,0.00012328,2]
[421998021,1778435449000,-3197.08,0.00012328,2]
[421998035,1778435449000,-3084.34,0.00012328,2]
[421998038,1778435449000,-1460.86096517,0.00012328,2]
[421998037,1778435449000,-500.0,0.00012328,2]
[421998022,1778435449000,-3580.09,0.00012328,2]
[421998030,1778435449000,-2492.48,0.00012328,2]
[421998033,1778435449000,-3417.57,0.00012328,2]
[421998034,1778435449000,-2934.49,0.00012328,2]
[421998032,1778435449000,-793.85,0.00012328,2]
[421998036,1778435449000,-500.0,0.00012328,2]
[421998029,1778435449000,-500.0,0.00012328,2]
[421998027,1778435449000,-500.0,0.00012328,2]
[421998025,1778435449000,-1482.44,0.00012328,2]
[421998026,1778435449000,-548.2,0.00012328,2]
[421998024,1778435449000,-529.51,0.00012328,2]
[421998023,1778435449000,-1444.48,0.00012328,2]
[421998020,1778435449000,-865.84,0.00012328,2]
[421998017,1778435449000,-3973.84,0.00012328,2]
[421998031,1778435449000,-500.0,0.00012328,2]
[421998039,1778435450000,-161.10030561,9.267e-05,2]
[421998041,1778435450000,-363.48683039,0.00012103,2]
[421998040,1778435450000,-160.0,0.00012103,2]
[421998042,1778435450000,-8480.36497885,0.00012103,2]
[421998099,1778436633000,229.3,0.00014551,120]
[421998131,1778436634000,-300.0,7.599e-05,2]
[421998116,1778436634000,-815.24868869,7.375e-05,2]
[421998129,1778436634000,-300.0,7.599e-05,2]
[421998121,1778436634000,-401.902727,7.487e-05,2]
[421998123,1778436634000,-679.38021328,7.598e-05,2]
[421998125,1778436634000,-520.61978672,7.598e-05,2]
[421998117,1778436634000,-4865.40049977,7.449e-05,2]
[421998132,1778436634000,-300.0,7.599e-05,2]
[421998138,1778436634000,-1093.98275846,7.6e-05,2]
[421998134,1778436634000,-374.34267449,7.6e-05,2]
[421998119,1778436634000,-134.59950023,7.449e-05,2]
[421998127,1778436634000,-300.0,7.599e-05,2]
[421998213,1778436639000,-420.0,8.359e-05,2]
[421998212,1778436639000,-420.0,8.359e-05,2]
[421998210,1778436639000,-600.0,7.905e-05,2]
[421998211,1778436639000,-1680.0,8.358e-05,2]
[421998208,1778436639000,-300.0,7.751e-05,2]
[421998209,1778436639000,-300.0,7.751e-05,2]
[421998206,1778436639000,-300.0,7.751e-05,2]
[421998207,1778436639000,-300.0,7.751e-05,2]
[421998205,1778436639000,-300.0,7.751e-05,2]
[421998204,1778436639000,-300.0,7.751e-05,2]
[421998201,1778436639000,-300.0,7.751e-05,2]
[421998198,1778436639000,-300.0,7.751e-05,2]
[421998214,1778436639000,-420.0,8.359e-05,2]
[421998200,1778436639000,-300.0,7.751e-05,2]
[421998202,1778436639000,-300.0,7.751e-05,2]
[421998199,1778436639000,-300.0,7.751e-05,2]
[421998196,1778436639000,-300.0,7.751e-05,2]
[421998197,1778436639000,-300.0,7.751e-05,2]
[421998194,1778436639000,-4654.23605574,7.6e-05,2]
[421998195,1778436639000,-300.0,7.751e-05,2]
[421998203,1778436639000,-300.0,7.751e-05,2]
[421998215,1778436639000,-420.0,8.359e-05,2]
[421998193,1778436639000,-1154.89680572,7.6e-05,2]
[421998219,1778436639000,-10000.0,9.209e-05,2]
[421998220,1778436639000,-256.81899257,9.29e-05,2]
[421998238,1778436639000,-893.0,0.00010303,2]
[421998232,1778436639000,-893.0,0.00010303,2]
[421998235,1778436639000,-893.0,0.00010303,2]
[421998237,1778436639000,-893.0,0.00010303,2]
[421998234,1778436639000,-893.0,0.00010303,2]
[421998233,1778436639000,-893.0,0.00010303,2]